Cogmind - Beta 11.1 @@@ ROGUE MODE // 2022.04.24 @ 18:52:50 Player: Lyra Result: Destroyed by D-53 Grenadier with Mini Grenade Launcher Performance ------------- Evolutions (0) 0 Regions Visited (4) 800 Robots Destroyed (23) 115 Value Destroyed (531) 531 Prototype IDs (0) 0 Alien Tech Used (0) 0 Bonus (-239) -239 TOTAL SCORE: 1207 Bonus ------- Follower Combat Kills 21 Friendly Fire -260 Cogmind --------- Core Integrity 0/250 Matter 268/300 Energy 98/100 System Corruption 4% Temperature Cool (1) Movement Walking (120) Location -9/Mines Parts ------- > --- POWER (1) -------- (None) > --- PROPULSION (2) --- Aluminum Leg > --- UTILITY (2) ------ Medium Storage Unit > --- WEAPON (2) ------- (None) > --- INVENTORY (10) --- Aluminum Leg Aluminum Leg Aluminum Leg High-capacity Battery (250) High-capacity Matter Pod (200) Compact Matter Pod (150) Terrain Scanner Peak State ------------ > --- POWER ------------ Light Nuclear Core > --- PROPULSION ------- Aluminum Leg Aluminum Leg > --- UTILITY ---------- Improved Heat Sink Medium Storage Unit > --- WEAPON ----------- EM Pulse Gun Light Cannon > --- INVENTORY -------- Ion Engine Aluminum Leg Aluminum Leg Aluminum Leg High-capacity Battery High-capacity Matter Pod Compact Matter Pod Terrain Scanner EM Pulse Gun Beam Cannon [Rating: 12] Favorites ----------- Power Ion Engine Engine Ion Engine Power Core Light Nuclear Core Propulsion Aluminum Leg Treads Light Treads Leg Aluminum Leg Utility Improved Heat Sink Device Improved Heat Sink Storage Small Storage Unit Weapon EM Pulse Gun Energy Gun EM Pulse Gun Energy Cannon Beam Cannon Ballistic Gun Light Assault Rifle Ballistic Cannon Light Cannon Build | -11 -10 -10 -10 -9 ------- Run | Scr Mat Min Exi Min Slots Evolved . | . . . . . Power . | . . . . . Propulsion . | . . . . . Utility . | . . . . . Weapon . | . . . . . Parts Attached 31 | 8 16 3 1 3 Power 3 | 1 1 1 . . Engine 2 | 1 1 . . . Core 1 | . . 1 . . Reactor . | . . . . . Propulsion 9 | 4 5 . . . Treads 3 | 2 1 . . . Leg 6 | 2 4 . . . Wheel . | . . . . . Hover . | . . . . . Flight . | . . . . . Utility 6 | 1 3 2 . . Device 3 | . 3 . . . Storage 3 | 1 . 2 . . Processor . | . . . . . Hackware . | . . . . . Protection . | . . . . . Artifact . | . . . . . Weapon 13 | 2 7 . 1 3 Energy Gun 8 | 1 5 . 1 1 Energy Cannon 1 | . . . . 1 Ballistic Gun 1 | 1 . . . . Ballistic Cannon 3 | . 2 . . 1 Launcher . | . . . . . Special Weapon . | . . . . . Impact Weapon . | . . . . . Slashing Weapon . | . . . . . Piercing Weapon . | . . . . . Special Melee Weapon . | . . . . . Unidentified Prototypes . | . . . . . Parts Lost 11 | . 4 . . 7 Power 2 | . 1 . . 1 Propulsion 1 | . . . . 1 Utility 1 | . . . . 1 Weapon 7 | . 3 . . 4 Highest Loss Streak 5 | . 2 . . 5 To Critical Strikes . | . . . . . Average Slot Usage (%) 92 | . 98 100 74 85 Engine 8 | . 13 8 . . Core 5 | . . 5 14 10 Leg 27 | . 27 28 28 26 Device 13 | . 13 14 14 10 Storage 14 | . 14 14 14 14 Energy Gun 14 | . 22 14 3 . Ballistic Cannon 5 | . 4 14 . 12 Naked Turns . | . . . . . Heaviest Build 22 | 13 16 21 21 22 Greatest Support 40 | 40 20 20 20 20 Greatest Overweight (x) 1 | . . 1 1 1 Average Overweight (x) . | . . . . . Largest Inventory Capacity 10 | 8 8 10 10 10 Average Capacity 8 | 7 8 9 10 10 Most Carried 10 | 3 8 10 10 9 Average Carried 8 | 1 7 8 9 7 Final Capacity 10 | 8 8 10 10 10 Final Carried 10 | 3 8 9 10 7 Class Distribution -------------------- 51% | Scavenger-Mutant 48% | Mutant Dominant Class ---------------- Mutant | -10/Materials Mutant | -10/Mines Scavenger-Mutant | -10/Exiles Scavenger-Mutant | -9/Mines Resources | -11 -10 -10 -10 -9 ----------- Run | Scr Mat Min Exi Min Matter Collected 817 | 195 517 100 . 5 Remotely . | . . . . . Salvage Created 789 | . 718 4 . 67 Parts 48 | . 40 2 . 6 Haulers Intercepted 2 | . 2 . . . Recyclers Shooed 1 | . 1 . . . Parts Field Recycled . | . . . . . Retrieved Matter . | . . . . . Parts Self-Destructed . | . . . . . Prevented . | . . . . . Kills | -11 -10 -10 -10 -9 ------- Run | Scr Mat Min Exi Min Combat Hostiles Destroyed 16 | . 12 1 . 3 Guns 10 | . 9 . . 1 Cannons 3 | . 2 1 . . AOE 2 | . . . . 2 Classes Destroyed 7 | . 6 1 . . Worker 1 | . 1 . . . Tunneler 1 | . 1 . . . Hauler 2 | . 2 . . . Recycler 1 | . 1 . . . Watcher 1 | . 1 . . . Swarmer 4 | . . 1 . 3 Grunt 13 | . 12 . . 1 Best Kill Streak 4 | . 4 1 . 3 Combat Bots Only 4 | . 4 1 . 3 Max Kills in Single Turn 4 | . 1 1 . 4 Gunslinging . | . . . . . Exploded 2 | . . . . 2 Melee . | . . . . . Uniques/NPCs Destroyed . | . . . . . Combat | -11 -10 -10 -10 -9 -------- Run | Scr Mat Min Exi Min Damage Taken 1435 | . 838 29 . 568 Core 253 | . 111 16 . 126 Absorbed by Shields . | . . . . . Core Remaining (%) 100 | 100 . . . . Volleys Fired 77 | . 69 3 . 5 Largest 2 | . 2 1 . 2 Hottest 95 | . 90 35 . 95 Shots Fired 140 | . 127 3 . 10 Gun 116 | . 114 . . 2 Cannon 24 | . 13 3 . 8 Launcher . | . . . . . Special . | . . . . . Kinetic 31 | . 24 3 . 4 Thermal 95 | . 91 . . 4 Explosive . | . . . . . Electromagnetic 14 | . 12 . . 2 Robot Hit Streak 9 | . 9 4 . 7 Robot Miss Streak 5 | . 4 . . 5 Penetration Max . | . . . . . Secondary Targets 3 | . 2 . . 1 Max Gunslinging Chain 1 | . 1 . . 1 Shots Hit Robots 82 | . 75 3 . 4 Core Hits 38 | . 33 1 . 4 Critical Kills . | . . . . . Critical Parts Destroyed . | . . . . . Critical Strikes 3 | . 3 . . . Burn 3 | . 3 . . . Melee Attacks . | . . . . . Impact . | . . . . . Slashing . | . . . . . Piercing . | . . . . . Sneak Attacks . | . . . . . Combat Hostiles . | . . . . . Follow-up Attacks . | . . . . . Damage Inflicted 1372 | . 944 57 . 371 Guns 852 | . 828 . . 24 Cannons 191 | . 102 54 . 35 Explosions 312 | . . . . 312 Melee . | . . . . . Ramming 17 | . 14 3 . . Kinetic 193 | . 139 54 . . Thermal 1039 | . 692 . . 347 Explosive . | . . . . . Electromagnetic 123 | . 99 . . 24 Impact . | . . . . . Slashing . | . . . . . Piercing . | . . . . . Highest Corruption 4 | . 4 4 4 4 Average Corruption 3 | . 2 4 4 4 Corruption Purged . | . . . . . Corruption Blocked . | . . . . . Effects 46 | . 17 13 15 1 Message Errors 11 | . 4 3 4 . Matter Fused 13 | . 6 5 2 . Heat Flow Errors 8 | . 1 3 3 1 Parts Rejected 1 | . 1 . . . Data Loss (minor) 7 | . 1 2 4 . Data Loss (major) 3 | . 1 . 2 . Misfires 2 | . 2 . . . Alerts 1 | . 1 . . . Overload Shots . | . . . . . Overflow Damage 42 | . . . . 42 Projectiles . | . . . . . Explosions 42 | . . . . 42 Melee . | . . . . . Knockbacks 5 | . 1 4 . . Impact . | . . . . . Kinetic 3 | . 1 2 . . Secondary 2 | . . 2 . . Self-Inflicted Damage 70 | . . . . 70 Shots 2 | . . . . 2 Rammed . | . . . . . Targets Rammed 6 | . 5 1 . . Kicked 6 | . 5 1 . . Crushed . | . . . . . Highest Temperature 267 | . 267 241 207 161 Average Temperature 58 | . 48 105 92 40 Received Heat Transfer 556 | . 396 . . 160 Siege Activations . | . . . . . Robots Corrupted . | . . . . . Combat Hostiles . | . . . . . Parts Fried . | . . . . . Impact Corruptions . | . . . . . Robots Melted 1 | . 1 . . . Combat Hostiles 1 | . 1 . . . Parts Melted 5 | . 5 . . . Heat Transferred 2422 | . 1998 . . 424 Parts Sabotaged . | . . . . . Parts Stolen . | . . . . . Parts Stripped . | . . . . . Power Chain Reactions 1 | . . . . 1 Missiles Intercepted . | . . . . . Alert | -11 -10 -10 -10 -9 ------- Run | Scr Mat Min Exi Min Peak Influence 219 | . 219 84 . 152 Initial 11 | . . 11 . . Average 53 | . 71 15 . 137 Maximum Alert Level 1 | . 1 . . . Low Security (%) 96 | 100 94 100 . 100 Level 1 3 | . 5 . . . Level 2 . | . . . . . Level 3 . | . . . . . Level 4 . | . . . . . Level 5 . | . . . . . High Security . | . . . . . Max Security . | . . . . . Squads Dispatched 2 | . 2 . . . Investigation 1 | . 1 . . . Extermination . | . . . . . Reinforcement 1 | . 1 . . . Assault . | . . . . . Garrison . | . . . . . Intercept . | . . . . . Searches Triggered . | . . . . . Construction Impeded . | . . . . . Haulers Reinforced . | . . . . . Active Scanning Responses . | . . . . . Cargo Convoy Interrupts . | . . . . . Stealth | -11 -10 -10 -10 -9 --------- Run | Scr Mat Min Exi Min Distress Signals . | . . . . . Communications Jammed . | . . . . . Distress Signals . | . . . . . Times Spotted 47 | . 26 3 . 18 Peak Tracking Total 12 | . 4 3 . 12 Tactical Retreats . | . . . . . Traps | -11 -10 -10 -10 -9 ------- Run | Scr Mat Min Exi Min Traps Triggered 5 | . 5 . . . Indirectly . | . . . . . Trap Hack Attempts . | . . . . . Triggered . | . . . . . Disarmed . | . . . . . Reprogrammed . | . . . . . Reused . | . . . . . Traps Extracted . | . . . . . Installed . | . . . . . Triggered . | . . . . . Machines | -11 -10 -10 -10 -9 ---------- Run | Scr Mat Min Exi Min Machines Disabled 1 | . . . . 1 Max in Single Turn 1 | . . . . 1 Machines Sabotaged . | . . . . . Garrisons Compromised . | . . . . . Overloaded Fab Kills . | . . . . . Hacking | -11 -10 -10 -10 -9 --------- Run | Scr Mat Min Exi Min Machines Accessed 9 | . 5 . 4 . Terminals 5 | . 5 . . . Fabricators . | . . . . . Repair Stations . | . . . . . Recycling Units . | . . . . . Scanalyzers . | . . . . . Garrison Access . | . . . . . Total Hacks 12 | . 8 . 4 . Successful 5 | . 1 . 4 . Failed 7 | . 7 . . . Catastrophic 3 | . 3 . . . Database Lockouts . | . . . . . Manual 7 | . 7 . . . Terminals 8 | . 8 . . . Fabricators . | . . . . . Repair Stations . | . . . . . Recycling Units . | . . . . . Scanalyzers . | . . . . . Garrison Access . | . . . . . Terminal Hacks 5 | . 1 . 4 . Record 4 | . . . 4 . Robot Analysis 1 | . 1 . . . Fabricator Hacks . | . . . . . Repair Station Hacks . | . . . . . Recycling Unit Hacks . | . . . . . Scanalyzer . | . . . . . Garrison Access Hacks . | . . . . . Unauthorized Hacks . | . . . . . Terminals . | . . . . . Fabricators . | . . . . . Repair Stations . | . . . . . Recycling Units . | . . . . . Scanalyzers . | . . . . . Garrison Access . | . . . . . Data Cores Recovered . | . . . . . Used . | . . . . . Hacking Detections 5 | . 5 . . . Full Trace Events . | . . . . . Feedback Events . | . . . . . Feedback Blocked . | . . . . . Robot Schematics Acquired . | . . . . . Robots Built . | . . . . . Authchips . | . . . . . Time . | . . . . . Total Robot Build Rating . | . . . . . Part Schematics Acquired . | . . . . . Parts Built . | . . . . . Authchips . | . . . . . Time . | . . . . . Total Part Build Rating . | . . . . . Parts Repaired . | . . . . . Time . | . . . . . Parts Recycled . | . . . . . Recycled Matter . | . . . . . Retrieved Matter . | . . . . . Retrieved Components . | . . . . . Parts Scanalyzed . | . . . . . Part Schematics Acquired . | . . . . . Parts Damaged . | . . . . . Bothacking | -11 -10 -10 -10 -9 ------------ Run | Scr Mat Min Exi Min Used RIF Installer . | . . . . . Robots Hacked . | . . . . . Non-combat . | . . . . . Combat . | . . . . . Robot Hacks Applied . | . . . . . Relay Couplers Released . | . . . . . Fabnet Peak Effective % . | . . . . . Robots Rewired . | . . . . . Allies Hacked . | . . . . . Hacks Repelled . | . . . . . Allies | -11 -10 -10 -10 -9 -------- Run | Scr Mat Min Exi Min Total Allies 4 | . . 4 . . Largest Group 4 | . . 4 2 1 Highest-Rated Group 71 | . . 71 24 8 Highest-Rated Ally 31 | . . 31 16 8 Total Orders . | . . . . . Ally Attacks 15 | . . 10 . 5 Total Damage 139 | . . 107 . 32 Kills 3 | . . 2 . 1 Allies Corrupted . | . . . . . Allies Melted . | . . . . . Intel | -11 -10 -10 -10 -9 ------- Run | Scr Mat Min Exi Min Robot Analysis Total 1 | . 1 . . . Derelict Logs Recovered 2 | . . 1 . 1 Drone Launches . | . . . . . Drone Recoveries . | . . . . . Exploration | -11 -10 -10 -10 -9 ------------- Run | Scr Mat Min Exi Min Turns Passed 2869 | 109 1314 627 750 69 Spaces Moved 1973 | 65 860 395 621 32 Core 4 | 4 . . . . Treads 52 | 40 12 . . . Legs 1917 | 21 848 395 621 32 Wheels . | . . . . . Hover . | . . . . . Flight . | . . . . . Fastest Speed 50 | 50 120 120 120 120 Average Speed 127 | 140 120 148 120 161 Slowest Speed 190 | 160 160 190 190 190 Overloaded Moves . | . . . . . Propulsion Burnouts . | . . . . . Robots Hopped . | . . . . . Cave-ins Triggered . | . . . . . Exploration Rate (%) 57 | 4 98 78 92 13 Regions Visited 4 Branch Regions 3 Pre-discovered Areas 1 | . . . . 1 Known Exits Taken . | . . . . . Unknown Exits Taken 4 | 1 1 1 1 . Scrap Searched 1 | . . 1 . . Spaces Dug . | . . . . . Terrain Destroyed 20 | . . . . 20 Melee . | . . . . . Projectile . | . . . . . AOE 20 | . . . . 20 Terrain Rammed . | . . . . . Walls Destroyed . | . . . . . Machines Disabled . | . . . . . Actions | -11 -10 -10 -10 -9 --------- Run | Scr Mat Min Exi Min Total 2190 | 79 1014 434 623 40 Wait 68 | 3 39 26 . . Move 1969 | 64 859 394 620 32 Hop . | . . . . . Pick Up 21 | 3 15 3 . . Fast Attach 10 | 7 2 . 1 . Attach 7 | . 4 . . 3 Detach 1 | . . . 1 . Swap 14 | 1 10 3 . . Drop 17 | 1 11 4 1 . Fire 77 | . 69 3 . 5 Melee . | . . . . . Ram . | . . . . . Kick 6 | . 5 1 . . Crush . | . . . . . Escape Stasis . | . . . . . Rewire . | . . . . . Trap . | . . . . . Miscellaneous . | . . . . . Route ------- -11/Scrapyard -10/Materials (discovered 5 exits: [*Mat x3] / [*Min x2]) -10/Mines (discovered 2 exits: [*Mat] / *Exi) -10/Exiles (discovered 2 exits: [*Min x2]) -9/Mines History --------- Turn | Location | Event 8 | -11/Scrapyard | Discovered new exit (range 16) 110 | -11/Scrapyard | Entered Materials 196 | -10/Materials | Discovered new exit (range 8) 319 | -10/Materials | Build established: Mutant 496 | -10/Materials | Discovered new exit (range 9) 733 | -10/Materials | Build established: Scavenger-Mutant 749 | -10/Materials | Discovered new exit (range 16) 978 | -10/Materials | Discovered new exit (range 6) 1093 | -10/Materials | Discovered new exit (range 8) 1183 | -10/Materials | Build established: Mutant 1424 | -10/Materials | Entered Mines 1490 | -10/Mines | Met a Derelict bent on vengeance 1534 | -10/Mines | Learned Materials terminal intel 1551 | -10/Mines | Discovered new exit (range 4) 1554 | -10/Mines | Received a Mining Laser from a helpful Derelict 1645 | -10/Mines | Assisted by bots powering up and referring to "LRC-V3" 1741 | -10/Mines | Core integrity fell below 50% 2018 | -10/Mines | Deemed a non-threat by the Exiles lab entrance 2020 | -10/Mines | Discovered new exit (range 5) 2051 | -10/Mines | Entered Exiles 2051 | -10/Exiles | Found Exiles lab abandoned 2051 | -10/Exiles | Accompanied by 2 allies 2119 | -10/Exiles | Build established: Scavenger-Mutant 2617 | -10/Exiles | Discovered new exit (range 15) 2783 | -10/Exiles | Discovered new exit (range 12) 2801 | -10/Exiles | Entered Mines 2801 | -9/Mines | Accompanied by 2 allies 2841 | -9/Mines | Assembled infested the area 2846 | -9/Mines | Assisted by a Guerilla fighting off Assembled 2869 | -9/Mines | Core integrity fell below 20% 2870 | -9/Mines | Destroyed by D-53 Grenadier with Mini Grenade Launcher Last Messages --------------- 02861_ as-24679 suffers critical hit (Destroy). 02861_ as-24679 destroyed. 02861_ as-98613 suffers critical hit (Destroy). 02861_ as-98613 destroyed. 02861_ Lgt. Cannon destroyed. 02863_ HV Slug penetrates as-58451. 02863_ as-58451 suffers critical hit (Destroy). 02863_ as-58451 destroyed. 02864_ Acquired derelict log, extracted data. World map updated: -8/Materials. 02865_ HV Slug penetrates as-74537. 02865_ as-74537 destroyed. 02865_ as-47802 destroyed. 02865_ ZK-4CB(h) suffers critical hit (Destroy). 02867_ ZK-4CB(h) destroyed. 02868_ C-30 ARC bursts open, deploying its payload. 02868_ D-53 Grenadier unfolds itself. 02868_ Aluminum Leg destroyed. 02870_ as-90116 destroyed. 02870_ as-97991 destroyed. Map ----- +----------------------------------------------------+ | ?????????????????????????????????????????????????? | | ?????????????????????????????????????????????????? | | ?????????????????????????????????????????????????? | | ?????????????????????????????????????????????????? | | ?????????????????????????????????????????????????? | | ??????????????????????????????????????????#######? | | ?????????????????????????????????????????##"""""## | | ?????????????????????????????????????????#" # | | ?????????????????????????????????????????#"% *% " | | ?????????????????????????????????????????# = [ # | | ?????????????????????????????????????????# % " | | ?????????????????????????? ??????????????# % # | | ?????????????????????????? ??????????????#" ! " | | ?????????????????????????? ??????????????#""" """# | | ?????????????????????????? ??????????????#### #### | | ?????????????????????????? ?????????????????# #??? | | ?????????????????????????? #????????????????# #??? | | ?????????????????????????# #????????????????# #??? | | ?????????????????????????# #????????????????# #??? | | ?????????????????????????# #????????????????# #??? | | ?????????????????????????# #???????????###### #??? | | ??????????????????????#??#r#???????????# #??? | | ??????????????????????# ## #?????????### #####??? | | ??????????????????????# # ####### ### #??????? | | ??????????????????????# % # #??????? | | ??????????????????????# @dd %a a % % #??????? | | ??????????????????????### a #??????? | | ????????????????????????# ## %%! "#??????? | | ????????????????????????## ### [ ###??????? | | ?????????????????????????#### ## #????????? | | ????????????????????????? ##### #????????? | | ?????????????????????? ##????# ##????????? | | ??????????????????????? #??????# ##?????????? | | ?????????????????????? ##???????# #??????????? | | ???????????????????????##??????????# ??????????? | | ???????????????????????????????????# ??????????? | | ???????????????????????????????????#####?????????? | | ?????????????????????????????????????????????????? | | ?????????????????????????????????????????????????? | | ?????????????????????????????????????????????????? | | ?????????????????????????????????????????????????? | | ?????????????????????????????????????????????????? | | ?????????????????????????????????????????????????? | | ?????????????????????????????????????????????????? | | ?????????????????????????????????????????????????? | | ?????????????????????????????????????????????????? | | ?????????????????????????????????????????????????? | | | | | | | +----------------------------------------------------+ Best States ------------- Heat Dissipation 39 Energy Generation 14 Energy Capacity 250 Matter Stores 300 Matter Capacity 300 Sight Range 16 Robot Scan Range 14 Terrain Scan Density 10 Evasion (%) 55 Recoil Reduction 2 Item Schematics ----------------- None Robot Schematics ------------------ None Fabricated ------------ Nothing Alien Tech Used ----------------- None Achievements -------------- None Challenges ------------ None Game ------ Seed BarrageAuthchipCanceller Manual? 0 Play Time 00:23:12 Cumulative 27.1 hours Start 2022.04.24 @ 17:48:37 End 2022.04.24 @ 18:52:50 Sessions 1 Manual Loads 0 Difficulty Rogue Special Mode None Game No. 20 Rogue 20 Adventurer 0 Explorer 0 Win Type - Total 0 Types 0/0/0/0/0/0/0/0/0 Lore% 13 Gallery% 32 Achievement% 67 Wizard Run 0 Options --------- ASCII 0 Keyboard 0 Movement Numpad Keybinds 0 Fullscreen 1 Font 24/Smallcaps Map View 76x50 Tactical HUD 1 Map Filters NONE Filters LOW_CONTRAST(47,30,31) Steam 1 RUN: 71529432-0d93-409a-ab29-de7b6fb4e87b